[Event "*** Titled Tuesday Blitz"]
[Site "Chess.com"]
[Date "2021.02.16"]
[Round "2"]
[White "NewBornNow"]
[Black "ikhasu"]
[Result "1-0"]
[WhiteElo "2776"]
[BlackElo "2417"]
[TimeControl "180+1"]
[EndTime "10:16:57 PST"]
[Termination "NewBornNow won on time"]

1. e4 {[%clk 0:02:59.3]} 1... c5 {[%clk 0:02:57.2]} 2. Nf3 {[%clk 0:02:57.7]}
2... Nc6 {[%clk 0:02:52.8]} 3. Bb5 {[%clk 0:02:56.3]} 3... Qc7 {[%clk
0:02:47.1]} 4. O-O {[%clk 0:02:54.6]} 4... Nf6 {[%clk 0:02:43.5]} 5. Re1 {[%clk
0:02:52.4]} 5... Ng4 {[%clk 0:02:32]} 6. Bxc6 {[%clk 0:02:50.1]} 6... dxc6
{[%clk 0:02:16.7]} 7. d3 {[%clk 0:02:46.8]} 7... g6 {[%clk 0:02:10.8]} 8. Nc3
{[%clk 0:02:43.9]} 8... Bg7 {[%clk 0:02:08.1]} 9. h3 {[%clk 0:02:43.8]} 9... Ne5
{[%clk 0:02:03]} 10. Nh2 {[%clk 0:02:42.3]} 10... O-O {[%clk 0:01:58]} 11. f4
{[%clk 0:02:41.7]} 11... Nd7 {[%clk 0:01:54.9]} 12. e5 {[%clk 0:02:41.5]} 12...
Nb6 {[%clk 0:01:45.1]} 13. Nf3 {[%clk 0:02:40]} 13... Nd5 {[%clk 0:01:40.3]} 14.
Ne4 {[%clk 0:02:38.8]} 14... b6 {[%clk 0:01:22.1]} 15. c4 {[%clk 0:02:36.9]}
15... Nb4 {[%clk 0:01:19.5]} 16. a3 {[%clk 0:02:36]} 16... Na6 {[%clk
0:01:14.8]} 17. Be3 {[%clk 0:02:34.9]} 17... Rd8 {[%clk 0:00:53.7]} 18. Qe2
{[%clk 0:02:34.2]} 18... Bf5 {[%clk 0:00:22.7]} 19. Nf2 {[%clk 0:02:28.5]} 19...
b5 {[%clk 0:00:14.3]} 20. Rad1 {[%clk 0:02:21.6]} 20... Rab8 {[%clk 0:00:08.8]}
21. g4 {[%clk 0:02:19.6]} 21... Bc8 {[%clk 0:00:07.6]} 22. Ne4 {[%clk 0:02:18]}
22... bxc4 {[%clk 0:00:07]} 23. dxc4 {[%clk 0:02:16.5]} 23... Rb3 {[%clk
0:00:06.8]} 24. Nxc5 {[%clk 0:02:12.7]} 24... Nxc5 {[%clk 0:00:05.4]} 25. Bxc5
{[%clk 0:02:12.3]} 1-0

[Event "*** Titled Tuesday Blitz"]
[Site "Chess.com"]
[Date "2021.02.16"]
[Round "2"]
[White "PawnEatingZombie"]
[Black "thechesscorner64"]
[Result "0-1"]
[WhiteElo "2140"]
[BlackElo "2421"]
[TimeControl "180+1"]
[EndTime "10:17:02 PST"]
[Termination "thechesscorner64 won by resignation"]

1. d4 {[%clk 0:03:00.9]} 1... Nf6 {[%clk 0:02:59.6]} 2. c4 {[%clk 0:02:59.9]}
2... e6 {[%clk 0:02:59.7]} 3. Nc3 {[%clk 0:03:00]} 3... Bb4 {[%clk 0:02:59.7]}
4. Qc2 {[%clk 0:03:00.5]} 4... Nc6 {[%clk 0:02:59]} 5. Nf3 {[%clk 0:02:59.7]}
5... d6 {[%clk 0:02:58.8]} 6. Bd2 {[%clk 0:02:59.7]} 6... Qe7 {[%clk 0:02:58.8]}
7. a3 {[%clk 0:02:59.8]} 7... Bxc3 {[%clk 0:02:58.6]} 8. Bxc3 {[%clk 0:03:00.7]}
8... e5 {[%clk 0:02:59.2]} 9. d5 {[%clk 0:02:58.9]} 9... Nb8 {[%clk 0:02:59.3]}
10. e4 {[%clk 0:02:56.3]} 10... a5 {[%clk 0:02:59.3]} 11. Be2 {[%clk 0:02:53.9]}
11... O-O {[%clk 0:02:56]} 12. O-O {[%clk 0:02:53]} 12... c6 {[%clk 0:02:49.1]}
13. c5 {[%clk 0:02:29.9]} 13... dxc5 {[%clk 0:02:28.3]} 14. Bxe5 {[%clk
0:02:25.2]} 14... cxd5 {[%clk 0:02:25.4]} 15. Bxf6 {[%clk 0:02:25]} 15... Qxf6
{[%clk 0:02:24.5]} 16. exd5 {[%clk 0:02:23.6]} 16... b6 {[%clk 0:02:18.4]} 17.
Rfd1 {[%clk 0:01:59.4]} 17... Bg4 {[%clk 0:02:14.5]} 18. h3 {[%clk 0:01:57.4]}
18... Bh5 {[%clk 0:02:14.5]} 19. Qd3 {[%clk 0:01:43]} 19... Nd7 {[%clk
0:02:08.1]} 20. Qb5 {[%clk 0:01:39.5]} 20... Rfd8 {[%clk 0:02:01.5]} 21. d6
{[%clk 0:01:18.7]} 21... Rac8 {[%clk 0:01:50.6]} 22. Rd2 {[%clk 0:01:16.8]}
22... Bxf3 {[%clk 0:01:37.3]} 23. Bxf3 {[%clk 0:01:15.8]} 23... Ne5 {[%clk
0:01:37.5]} 24. Bb7 {[%clk 0:01:00.5]} 24... Rb8 {[%clk 0:01:25.6]} 25. Qxb6
{[%clk 0:00:41.7]} 25... Nc4 {[%clk 0:01:23.6]} 0-1

[Event "*** Titled Tuesday Blitz"]
[Site "Chess.com"]
[Date "2021.02.16"]
[Round "2"]
[White "Guzman70"]
[Black "dozer80"]
[Result "0-1"]
[WhiteElo "2235"]
[BlackElo "2617"]
[TimeControl "180+1"]
[EndTime "10:17:05 PST"]
[Termination "dozer80 won by resignation"]

1. d4 {[%clk 0:03:00.9]} 1... d5 {[%clk 0:02:59.5]} 2. Bf4 {[%clk 0:02:54.1]}
2... c5 {[%clk 0:02:55.8]} 3. e3 {[%clk 0:02:52]} 3... Nf6 {[%clk 0:02:55.5]} 4.
c3 {[%clk 0:02:49.5]} 4... Qb6 {[%clk 0:02:55]} 5. Qb3 {[%clk 0:02:42.6]} 5...
c4 {[%clk 0:02:48.2]} 6. Qxb6 {[%clk 0:02:38.6]} 6... axb6 {[%clk 0:02:47.3]} 7.
a3 {[%clk 0:02:38.5]} 7... Nc6 {[%clk 0:02:46.6]} 8. Nd2 {[%clk 0:02:38.4]} 8...
b5 {[%clk 0:02:46.7]} 9. Ngf3 {[%clk 0:02:28.2]} 9... b4 {[%clk 0:02:46.1]} 10.
Ne5 {[%clk 0:02:11]} 10... bxc3 {[%clk 0:02:40.5]} 11. bxc3 {[%clk 0:02:11]}
11... Bd7 {[%clk 0:02:23.3]} 12. e4 {[%clk 0:02:04]} 12... e6 {[%clk 0:02:22.2]}
13. Nxd7 {[%clk 0:02:02.4]} 13... Kxd7 {[%clk 0:02:21.7]} 14. exd5 {[%clk
0:02:01.7]} 14... exd5 {[%clk 0:02:22.6]} 15. a4 {[%clk 0:01:58.8]} 15... Bd6
{[%clk 0:02:21.8]} 16. Bxd6 {[%clk 0:01:57.5]} 16... Kxd6 {[%clk 0:02:22.7]} 17.
Be2 {[%clk 0:01:57.9]} 17... Rhe8 {[%clk 0:02:21.9]} 18. Kd1 {[%clk 0:01:56.4]}
18... Ra7 {[%clk 0:02:17.9]} 19. Re1 {[%clk 0:01:53.1]} 19... Rea8 {[%clk
0:02:17.5]} 20. Kc2 {[%clk 0:01:50.6]} 20... Rxa4 {[%clk 0:02:17.1]} 21. Rxa4
{[%clk 0:01:51.2]} 21... Rxa4 {[%clk 0:02:17.7]} 22. Rb1 {[%clk 0:01:50.7]}
22... Kc7 {[%clk 0:02:07.3]} 23. Bf3 {[%clk 0:01:46.3]} 23... Ra2+ {[%clk
0:02:03.1]} 24. Rb2 {[%clk 0:01:46.1]} 24... Ra1 {[%clk 0:01:55.2]} 25. Rb1
{[%clk 0:01:43.8]} 25... Ra8 {[%clk 0:01:54.2]} 26. Rb5 {[%clk 0:01:43.3]} 26...
Ra2+ {[%clk 0:01:45.6]} 27. Kc1 {[%clk 0:01:43.2]} 27... Ra5 {[%clk 0:01:39.8]}
28. Rb2 {[%clk 0:01:38.1]} 28... b5 {[%clk 0:01:39.1]} 29. Kc2 {[%clk 0:01:37]}
29... b4 {[%clk 0:01:26.2]} 30. cxb4 {[%clk 0:01:35.8]} 30... Nxd4+ {[%clk
0:01:26.2]} 31. Kc3 {[%clk 0:01:34.8]} 31... Nb5+ {[%clk 0:01:26.6]} 32. Kc2
{[%clk 0:01:32.6]} 32... Ra1 {[%clk 0:01:26.4]} 33. Rb1 {[%clk 0:01:28]} 33...
Na3+ {[%clk 0:01:26]} 34. Kb2 {[%clk 0:01:27.9]} 34... Nxb1 {[%clk 0:01:25.5]}
35. Nxb1 {[%clk 0:01:24.4]} 35... Ra8 {[%clk 0:01:21.2]} 36. Nc3 {[%clk
0:01:23.9]} 36... Rd8 {[%clk 0:01:19.9]} 37. Nb5+ {[%clk 0:01:21.6]} 37... Kb6
{[%clk 0:01:19.7]} 38. Nd4 {[%clk 0:01:22.5]} 38... Ne4 {[%clk 0:01:19.5]} 39.
Kc2 {[%clk 0:01:19.8]} 39... Nxf2 {[%clk 0:01:18.5]} 40. Nf5 {[%clk 0:01:20.1]}
40... d4 {[%clk 0:01:14.6]} 0-1

[Event "*** Titled Tuesday Blitz"]
[Site "Chess.com"]
[Date "2021.02.16"]
[Round "2"]
[White "sara_khm"]
[Black "Ladislav1969"]
[Result "1-0"]
[WhiteElo "2636"]
[BlackElo "2316"]
[TimeControl "180+1"]
[EndTime "10:17:08 PST"]
[Termination "sara_khm won by resignation"]

1. d4 {[%clk 0:03:00.9]} 1... Nf6 {[%clk 0:02:59.4]} 2. c4 {[%clk 0:02:59.8]}
2... g6 {[%clk 0:02:59.8]} 3. g3 {[%clk 0:02:59.6]} 3... Bg7 {[%clk 0:02:58.7]}
4. Bg2 {[%clk 0:02:59.8]} 4... d5 {[%clk 0:02:59.4]} 5. cxd5 {[%clk 0:02:58.1]}
5... Nxd5 {[%clk 0:03:00.3]} 6. e4 {[%clk 0:02:58.3]} 6... Nb6 {[%clk
0:03:00.3]} 7. Ne2 {[%clk 0:02:58.5]} 7... c5 {[%clk 0:02:57.4]} 8. d5 {[%clk
0:02:52.3]} 8... e6 {[%clk 0:02:53.7]} 9. Nbc3 {[%clk 0:02:51.9]} 9... O-O
{[%clk 0:02:46.2]} 10. O-O {[%clk 0:02:51.1]} 10... exd5 {[%clk 0:02:07.4]} 11.
exd5 {[%clk 0:02:50.6]} 11... N8d7 {[%clk 0:02:07.5]} 12. Be3 {[%clk 0:02:47.9]}
12... Nc4 {[%clk 0:02:04.3]} 13. Bc1 {[%clk 0:02:41.1]} 13... Nde5 {[%clk
0:01:59]} 14. b3 {[%clk 0:02:39.5]} 14... Nd6 {[%clk 0:01:57.8]} 15. Be3 {[%clk
0:02:39.1]} 15... b6 {[%clk 0:01:48.1]} 16. Rc1 {[%clk 0:02:36.2]} 16... Ba6
{[%clk 0:01:47.5]} 17. Qd2 {[%clk 0:02:32.6]} 17... Re8 {[%clk 0:01:38.5]} 18.
Rfd1 {[%clk 0:02:31.4]} 18... Nf5 {[%clk 0:01:33.7]} 19. Bg5 {[%clk 0:02:26.6]}
19... f6 {[%clk 0:01:21.4]} 20. Bf4 {[%clk 0:02:25.4]} 20... Nd3 {[%clk
0:01:21.3]} 21. Rb1 {[%clk 0:02:16.7]} 21... Nxf4 {[%clk 0:01:21.3]} 22. Nxf4
{[%clk 0:02:16.3]} 22... Nd4 {[%clk 0:01:21.3]} 23. Ne6 {[%clk 0:02:07.7]} 23...
Nxe6 {[%clk 0:01:09.5]} 24. dxe6 {[%clk 0:02:07.9]} 24... Qxd2 {[%clk 0:01:04]}
25. Rxd2 {[%clk 0:02:07.1]} 25... Rad8 {[%clk 0:01:03.8]} 26. Rxd8 {[%clk
0:02:06.3]} 26... Rxd8 {[%clk 0:01:03.7]} 27. Re1 {[%clk 0:01:54.7]} 27... f5
{[%clk 0:00:22.5]} 28. e7 {[%clk 0:01:53.3]} 28... Re8 {[%clk 0:00:22.6]} 29.
Bc6 {[%clk 0:01:53.1]} 29... Bxc3 {[%clk 0:00:20.6]} 30. Bxe8 {[%clk 0:01:53.2]}
30... Bxe1 {[%clk 0:00:16.8]} 31. Bd7 {[%clk 0:01:53.1]} 1-0

[Event "*** Titled Tuesday Blitz"]
[Site "Chess.com"]
[Date "2021.02.16"]
[Round "2"]
[White "maximnovik"]
[Black "Smirnov_Pavel"]
[Result "0-1"]
[WhiteElo "2548"]
[BlackElo "2903"]
[TimeControl "180+1"]
[EndTime "10:17:16 PST"]
[Termination "Smirnov_Pavel won by resignation"]

1. Nf3 {[%clk 0:02:44.9]} 1... Nf6 {[%clk 0:02:59.5]} 2. g3 {[%clk 0:02:45.5]}
2... e6 {[%clk 0:03:00.4]} 3. Bg2 {[%clk 0:02:45.8]} 3... d5 {[%clk 0:03:01.3]}
4. O-O {[%clk 0:02:46.2]} 4... Be7 {[%clk 0:03:02.2]} 5. d3 {[%clk 0:02:46.4]}
5... O-O {[%clk 0:03:03.1]} 6. Nbd2 {[%clk 0:02:46.7]} 6... c5 {[%clk
0:03:03.6]} 7. e4 {[%clk 0:02:47.1]} 7... Nc6 {[%clk 0:03:04.5]} 8. Re1 {[%clk
0:02:46.6]} 8... dxe4 {[%clk 0:03:04.1]} 9. dxe4 {[%clk 0:02:46.2]} 9... e5
{[%clk 0:03:04.4]} 10. c3 {[%clk 0:02:45.7]} 10... Qc7 {[%clk 0:03:03.9]} 11. h3
{[%clk 0:02:44.4]} 11... h6 {[%clk 0:02:58.2]} 12. Qe2 {[%clk 0:02:43.1]} 12...
Be6 {[%clk 0:02:56.8]} 13. Nh4 {[%clk 0:02:35.6]} 13... Rfd8 {[%clk 0:02:56]}
14. Nf5 {[%clk 0:02:33.2]} 14... Bf8 {[%clk 0:02:56.1]} 15. Qf3 {[%clk
0:02:31.8]} 15... g6 {[%clk 0:02:46.8]} 16. Ne3 {[%clk 0:02:18.8]} 16... Bg7
{[%clk 0:02:44.1]} 17. Ndf1 {[%clk 0:02:16.8]} 17... c4 {[%clk 0:02:38.4]} 18.
Ng4 {[%clk 0:02:15.8]} 18... Nxg4 {[%clk 0:02:33.6]} 19. hxg4 {[%clk 0:02:15.9]}
19... Rd3 {[%clk 0:02:34.5]} 20. Qe2 {[%clk 0:02:08.1]} 20... Rad8 {[%clk
0:02:25.8]} 21. g5 {[%clk 0:02:07.2]} 21... h5 {[%clk 0:02:23.2]} 22. Ne3 {[%clk
0:02:06.3]} 22... Ne7 {[%clk 0:02:22.1]} 23. Qf3 {[%clk 0:01:47.5]} 23... Bg4
{[%clk 0:02:17.3]} 24. Nxg4 {[%clk 0:01:30.7]} 24... Rxf3 {[%clk 0:02:16.2]} 25.
Ne3 {[%clk 0:01:15.4]} 25... Rxe3 {[%clk 0:02:08.4]} 26. Bxe3 {[%clk 0:01:14.7]}
26... Nc6 {[%clk 0:02:06]} 27. Bf1 {[%clk 0:01:08]} 27... b5 {[%clk 0:02:03.7]}
28. a4 {[%clk 0:01:07.8]} 28... b4 {[%clk 0:01:51.6]} 29. Bxc4 {[%clk
0:01:06.9]} 29... bxc3 {[%clk 0:01:51.4]} 30. bxc3 {[%clk 0:01:06.3]} 30... Nd4
{[%clk 0:01:48.4]} 31. cxd4 {[%clk 0:00:56.3]} 31... exd4 {[%clk 0:01:45.4]} 32.
Bxf7+ {[%clk 0:00:52.3]} 32... Qxf7 {[%clk 0:01:44.9]} 33. Bf4 {[%clk
0:00:52.8]} 33... d3 {[%clk 0:01:44.6]} 34. e5 {[%clk 0:00:52.6]} 34... d2
{[%clk 0:01:40.3]} 35. Red1 {[%clk 0:00:51.2]} 35... Qf5 {[%clk 0:01:40.8]} 36.
Ra2 {[%clk 0:00:38.8]} 36... Bxe5 {[%clk 0:01:38.6]} 37. Bxe5 {[%clk 0:00:37.8]}
37... Qxe5 {[%clk 0:01:38.4]} 0-1

[Event "*** Titled Tuesday Blitz"]
[Site "Chess.com"]
[Date "2021.02.16"]
[Round "2"]
[White "Infernal_XaM"]
[Black "verdest"]
[Result "1-0"]
[WhiteElo "2820"]
[BlackElo "2506"]
[TimeControl "180+1"]
[EndTime "10:17:16 PST"]
[Termination "Infernal_XaM won by resignation"]

1. d4 {[%clk 0:03:00.9]} 1... Nf6 {[%clk 0:02:58.7]} 2. c4 {[%clk 0:03:01.4]}
2... e6 {[%clk 0:02:59]} 3. Nc3 {[%clk 0:03:01.3]} 3... d5 {[%clk 0:02:59.6]} 4.
Nf3 {[%clk 0:03:01]} 4... Bb4 {[%clk 0:02:59]} 5. a3 {[%clk 0:02:58.7]} 5...
Bxc3+ {[%clk 0:02:57.4]} 6. bxc3 {[%clk 0:02:59.6]} 6... O-O {[%clk 0:02:49.3]}
7. Bg5 {[%clk 0:02:58.1]} 7... b6 {[%clk 0:02:48.7]} 8. cxd5 {[%clk 0:02:57.4]}
8... exd5 {[%clk 0:02:48]} 9. Qc2 {[%clk 0:02:57.2]} 9... h6 {[%clk 0:02:47.9]}
10. Bh4 {[%clk 0:02:57.1]} 10... Ba6 {[%clk 0:02:47.4]} 11. Qf5 {[%clk
0:02:56.5]} 11... Nbd7 {[%clk 0:02:43]} 12. Ne5 {[%clk 0:02:56.6]} 12... Qe7
{[%clk 0:02:33]} 13. g4 {[%clk 0:02:44.2]} 13... Qe6 {[%clk 0:02:24]} 14. Bg2
{[%clk 0:02:34.8]} 14... Qxf5 {[%clk 0:02:12.6]} 15. gxf5 {[%clk 0:02:34.6]}
15... Bb7 {[%clk 0:02:11.9]} 16. c4 {[%clk 0:02:30.7]} 16... Nxe5 {[%clk
0:01:56.6]} 17. dxe5 {[%clk 0:02:30.5]} 17... Ne4 {[%clk 0:01:37.5]} 18. Rg1
{[%clk 0:02:28.7]} 18... Kh7 {[%clk 0:01:34.4]} 19. cxd5 {[%clk 0:02:18.6]}
19... Bxd5 {[%clk 0:01:35.3]} 20. O-O-O {[%clk 0:02:18.4]} 20... c6 {[%clk
0:01:30.5]} 21. Be7 {[%clk 0:02:07.1]} 21... Rfe8 {[%clk 0:01:28.8]} 22. f6
{[%clk 0:02:03.5]} 22... g5 {[%clk 0:01:14.1]} 23. Kc2 {[%clk 0:01:31.4]} 23...
Nxf2 {[%clk 0:00:41.8]} 24. Bxd5 {[%clk 0:01:04.6]} 24... Nxd1 {[%clk
0:00:41.4]} 25. Be4+ {[%clk 0:01:04.2]} 1-0

[Event "*** Titled Tuesday Blitz"]
[Site "Chess.com"]
[Date "2021.02.16"]
[Round "2"]
[White "JimmmyZhang"]
[Black "KafkaesqueKnight"]
[Result "1-0"]
[WhiteElo "2434"]
[BlackElo "2194"]
[TimeControl "180+1"]
[EndTime "10:17:17 PST"]
[Termination "JimmmyZhang won by resignation"]

1. Nf3 {[%clk 0:03:00.9]} 1... Nf6 {[%clk 0:03:00.1]} 2. g3 {[%clk 0:02:59.4]}
2... e6 {[%clk 0:03:00.2]} 3. Bg2 {[%clk 0:03:00.3]} 3... d5 {[%clk 0:03:00.6]}
4. O-O {[%clk 0:03:01.2]} 4... Be7 {[%clk 0:03:00.9]} 5. c4 {[%clk 0:03:02.1]}
5... dxc4 {[%clk 0:03:00.6]} 6. Qa4+ {[%clk 0:03:01.6]} 6... Bd7 {[%clk
0:03:00.2]} 7. Qxc4 {[%clk 0:03:02.5]} 7... Bc6 {[%clk 0:03:00.7]} 8. Nc3 {[%clk
0:03:01.4]} 8... O-O {[%clk 0:03:00.1]} 9. d3 {[%clk 0:03:01]} 9... Nbd7 {[%clk
0:02:59.5]} 10. Bf4 {[%clk 0:03:00.4]} 10... Nb6 {[%clk 0:02:58.7]} 11. Qb3
{[%clk 0:03:00.5]} 11... Nbd5 {[%clk 0:02:53.6]} 12. Bd2 {[%clk 0:02:57.5]}
12... Nb6 {[%clk 0:02:40.8]} 13. Rac1 {[%clk 0:02:42.8]} 13... a5 {[%clk
0:02:39.7]} 14. Qc2 {[%clk 0:02:37.3]} 14... a4 {[%clk 0:02:27.3]} 15. a3 {[%clk
0:02:32.5]} 15... Rc8 {[%clk 0:02:22.5]} 16. Rfd1 {[%clk 0:02:16]} 16... h6
{[%clk 0:02:22.6]} 17. Qb1 {[%clk 0:02:07.3]} 17... Nfd5 {[%clk 0:02:20.1]} 18.
Ne4 {[%clk 0:01:59.1]} 18... f5 {[%clk 0:02:13.8]} 19. Nc5 {[%clk 0:01:56.9]}
19... Bxc5 {[%clk 0:02:00]} 20. Rxc5 {[%clk 0:01:57.8]} 20... Qd6 {[%clk
0:01:53.9]} 21. Rdc1 {[%clk 0:01:56.7]} 21... e5 {[%clk 0:01:54.4]} 22. d4
{[%clk 0:01:52.9]} 22... e4 {[%clk 0:01:42.9]} 23. Ne5 {[%clk 0:01:50.6]} 23...
Nd7 {[%clk 0:01:43]} 24. Rxc6 {[%clk 0:01:40.8]} 24... bxc6 {[%clk 0:01:37.6]}
25. Rxc6 {[%clk 0:01:41.7]} 25... Qe7 {[%clk 0:01:09.1]} 26. Ng6 {[%clk
0:01:34.8]} 26... Qf7 {[%clk 0:01:09]} 27. Nxf8 {[%clk 0:01:34.7]} 27... Rxf8
{[%clk 0:01:09.8]} 28. e3 {[%clk 0:01:34.4]} 28... N7b6 {[%clk 0:01:09.3]} 29.
Bf1 {[%clk 0:01:33.9]} 29... Kh8 {[%clk 0:01:06.2]} 30. Ba5 {[%clk 0:01:34]}
30... Ra8 {[%clk 0:01:02.5]} 31. Bxb6 {[%clk 0:01:31.1]} 31... Nxb6 {[%clk
0:01:03.1]} 32. Qc2 {[%clk 0:01:30.8]} 32... Ra7 {[%clk 0:00:58.6]} 33. Qc5
{[%clk 0:01:27.7]} 33... Nc8 {[%clk 0:00:51.7]} 34. Bc4 {[%clk 0:01:26]} 34...
Qd7 {[%clk 0:00:44.4]} 35. Be6 {[%clk 0:01:23]} 35... Qe7 {[%clk 0:00:44.8]} 36.
Bxc8 {[%clk 0:01:22.4]} 1-0

[Event "*** Titled Tuesday Blitz"]
[Site "Chess.com"]
[Date "2021.02.16"]
[Round "2"]
[White "NiranjanNavalgund"]
[Black "thisunaa"]
[Result "1-0"]
[WhiteElo "2473"]
[BlackElo "1981"]
[TimeControl "180+1"]
[EndTime "10:17:21 PST"]
[Termination "NiranjanNavalgund won by resignation"]

1. d4 {[%clk 0:03:00.9]} 1... Nf6 {[%clk 0:02:59.7]} 2. c4 {[%clk 0:03:00.2]}
2... g6 {[%clk 0:02:58.8]} 3. Nc3 {[%clk 0:02:57.4]} 3... Bg7 {[%clk 0:02:58.8]}
4. e4 {[%clk 0:02:56.9]} 4... d6 {[%clk 0:02:58.9]} 5. Bd3 {[%clk 0:02:56.3]}
5... O-O {[%clk 0:02:58.5]} 6. Nge2 {[%clk 0:02:56.1]} 6... e5 {[%clk
0:02:58.4]} 7. d5 {[%clk 0:02:55.7]} 7... a5 {[%clk 0:02:58.9]} 8. Rb1 {[%clk
0:02:51.2]} 8... Na6 {[%clk 0:02:58.5]} 9. a3 {[%clk 0:02:51.1]} 9... Nc5 {[%clk
0:02:56.8]} 10. Bc2 {[%clk 0:02:51.3]} 10... Nfd7 {[%clk 0:02:39.5]} 11. O-O
{[%clk 0:02:50.3]} 11... f5 {[%clk 0:02:37.6]} 12. exf5 {[%clk 0:02:49.5]} 12...
gxf5 {[%clk 0:02:37.2]} 13. b4 {[%clk 0:02:50.4]} 13... Na6 {[%clk 0:02:29.5]}
14. f4 {[%clk 0:02:47.6]} 14... e4 {[%clk 0:02:24.2]} 15. Be3 {[%clk 0:02:46.9]}
15... axb4 {[%clk 0:01:21.5]} 16. axb4 {[%clk 0:02:44.4]} 16... b6 {[%clk
0:01:17.6]} 17. Nd4 {[%clk 0:02:44.3]} 17... Nf6 {[%clk 0:01:04.1]} 18. h3
{[%clk 0:02:41.2]} 18... Ne8 {[%clk 0:00:55.6]} 19. Qh5 {[%clk 0:02:38.1]} 19...
Qf6 {[%clk 0:00:55.4]} 20. g4 {[%clk 0:02:33.3]} 20... Qxd4 {[%clk 0:00:49.9]}
21. Bxd4 {[%clk 0:02:32.4]} 21... Bxd4+ {[%clk 0:00:50.8]} 22. Kg2 {[%clk
0:02:32]} 22... Bxc3 {[%clk 0:00:51.7]} 23. Rb3 {[%clk 0:02:26.8]} 23... Bg7
{[%clk 0:00:45.7]} 24. gxf5 {[%clk 0:02:26.3]} 24... Bxf5 {[%clk 0:00:44.5]} 25.
Rg3 {[%clk 0:02:25.5]} 25... Nf6 {[%clk 0:00:31.6]} 26. Qxf5 {[%clk 0:02:24.7]}
26... Nxb4 {[%clk 0:00:31.5]} 27. Bxe4 {[%clk 0:02:16.5]} 27... Ra2+ {[%clk
0:00:28.5]} 28. Kh1 {[%clk 0:02:13.5]} 28... Nxe4 {[%clk 0:00:19.7]} 29. Qxe4
{[%clk 0:02:14.4]} 29... Kh8 {[%clk 0:00:13]} 30. Rfg1 {[%clk 0:02:09.1]} 30...
Rg8 {[%clk 0:00:10.9]} 31. Qd4 {[%clk 0:02:02.6]} 31... Ra1 {[%clk 0:00:07.8]}
32. Qxa1 {[%clk 0:02:00.6]} 1-0

[Event "*** Titled Tuesday Blitz"]
[Site "Chess.com"]
[Date "2021.02.16"]
[Round "2"]
[White "swisspower96"]
[Black "garfield_pg"]
[Result "1-0"]
[WhiteElo "2633"]
[BlackElo "2314"]
[TimeControl "180+1"]
[EndTime "10:17:28 PST"]
[Termination "swisspower96 won by checkmate"]

1. d4 {[%clk 0:03:00.9]} 1... Nf6 {[%clk 0:02:55.7]} 2. c4 {[%clk 0:02:57.5]}
2... g6 {[%clk 0:02:55.7]} 3. Nc3 {[%clk 0:02:54.7]} 3... Bg7 {[%clk 0:02:55.2]}
4. e4 {[%clk 0:02:54.8]} 4... d6 {[%clk 0:02:55.3]} 5. h3 {[%clk 0:02:55.5]}
5... O-O {[%clk 0:02:55.3]} 6. Be3 {[%clk 0:02:56.2]} 6... c5 {[%clk 0:02:55.8]}
7. Nf3 {[%clk 0:02:54.3]} 7... cxd4 {[%clk 0:02:55.4]} 8. Nxd4 {[%clk
0:02:55.2]} 8... Nc6 {[%clk 0:02:56.2]} 9. Be2 {[%clk 0:02:54.6]} 9... Nxd4
{[%clk 0:02:55.1]} 10. Bxd4 {[%clk 0:02:54.7]} 10... Qa5 {[%clk 0:02:56]} 11.
O-O {[%clk 0:02:54.2]} 11... Be6 {[%clk 0:02:56.2]} 12. Rc1 {[%clk 0:02:49.4]}
12... Rfc8 {[%clk 0:02:52.3]} 13. b3 {[%clk 0:02:48.4]} 13... a6 {[%clk
0:02:52.1]} 14. Nd5 {[%clk 0:02:46.4]} 14... Bxd5 {[%clk 0:02:50.1]} 15. exd5
{[%clk 0:02:46.1]} 15... Nd7 {[%clk 0:02:46.6]} 16. Bxg7 {[%clk 0:02:42.2]}
16... Kxg7 {[%clk 0:02:47.5]} 17. Qd4+ {[%clk 0:02:42.8]} 17... Kg8 {[%clk
0:02:38.6]} 18. a4 {[%clk 0:02:32.4]} 18... Qb4 {[%clk 0:01:29.4]} 19. Qe3
{[%clk 0:02:31.8]} 19... Kf8 {[%clk 0:01:21.1]} 20. Rfe1 {[%clk 0:02:25.9]}
20... Nc5 {[%clk 0:01:17.7]} 21. Bf1 {[%clk 0:02:26.1]} 21... Rc7 {[%clk
0:01:13]} 22. Rb1 {[%clk 0:02:25.2]} 22... Re8 {[%clk 0:00:57.3]} 23. h4 {[%clk
0:02:24.4]} 23... h5 {[%clk 0:00:56.9]} 24. Qh6+ {[%clk 0:02:20.9]} 24... Kg8
{[%clk 0:00:56.7]} 25. Re3 {[%clk 0:02:21.3]} 25... Qd2 {[%clk 0:00:31.5]} 26.
Qg5 {[%clk 0:02:18.6]} 26... Qd4 {[%clk 0:00:14.2]} 27. a5 {[%clk 0:02:09.9]}
27... Kg7 {[%clk 0:00:11.5]} 28. Rbe1 {[%clk 0:02:03.2]} 28... Qf6 {[%clk
0:00:09.9]} 29. Qg3 {[%clk 0:01:57.6]} 29... Kf8 {[%clk 0:00:05.2]} 30. Rf3
{[%clk 0:01:53.9]} 30... Qd4 {[%clk 0:00:02.8]} 31. Qxg6 {[%clk 0:01:51.7]}
31... Qg7 {[%clk 0:00:03.2]} 32. Qxh5 {[%clk 0:01:51]} 32... Nd7 {[%clk
0:00:02.3]} 33. Rg3 {[%clk 0:01:50.9]} 33... Qf6 {[%clk 0:00:02.7]} 34. Qh7
{[%clk 0:01:49.7]} 34... Ne5 {[%clk 0:00:02.2]} 35. Rg8# {[%clk 0:01:49.1]} 1-0

[Event "*** Titled Tuesday Blitz"]
[Site "Chess.com"]
[Date "2021.02.16"]
[Round "2"]
[White "ErikRonka"]
[Black "krzyzan94"]
[Result "0-1"]
[WhiteElo "2497"]
[BlackElo "2757"]
[TimeControl "180+1"]
[EndTime "10:17:31 PST"]
[Termination "krzyzan94 won by resignation"]

1. e4 {[%clk 0:03:00.9]} 1... e5 {[%clk 0:02:59.2]} 2. Nc3 {[%clk 0:03:00.9]}
2... Nf6 {[%clk 0:02:56.9]} 3. Bc4 {[%clk 0:03:00.6]} 3... Nc6 {[%clk
0:02:53.3]} 4. d3 {[%clk 0:03:00.5]} 4... Bc5 {[%clk 0:02:49.6]} 5. f4 {[%clk
0:02:59.8]} 5... d6 {[%clk 0:02:41.2]} 6. Nf3 {[%clk 0:03:00.1]} 6... Bg4 {[%clk
0:02:40.6]} 7. Na4 {[%clk 0:02:59.7]} 7... Bb6 {[%clk 0:02:23.5]} 8. Nxb6 {[%clk
0:02:58.6]} 8... axb6 {[%clk 0:02:24.4]} 9. O-O {[%clk 0:02:58.5]} 9... Nd4
{[%clk 0:02:21.6]} 10. c3 {[%clk 0:02:52.6]} 10... Nxf3+ {[%clk 0:02:21]} 11.
gxf3 {[%clk 0:02:53.5]} 11... Bh3 {[%clk 0:02:19.2]} 12. Rf2 {[%clk 0:02:47.7]}
12... Nh5 {[%clk 0:02:11.6]} 13. fxe5 {[%clk 0:02:10.6]} 13... dxe5 {[%clk
0:02:09.8]} 14. f4 {[%clk 0:02:10.8]} 14... Qh4 {[%clk 0:01:35.1]} 15. fxe5
{[%clk 0:01:56.3]} 15... O-O {[%clk 0:01:33.6]} 16. Qf3 {[%clk 0:01:34.9]} 16...
Kh8 {[%clk 0:01:32.1]} 17. Bf4 {[%clk 0:01:28]} 17... Bg4 {[%clk 0:01:21]} 18.
Bg3 {[%clk 0:01:12.3]} 18... Qg5 {[%clk 0:01:15.3]} 19. h4 {[%clk 0:00:38.5]}
19... Qg6 {[%clk 0:01:00.3]} 20. Bxf7 {[%clk 0:00:38]} 20... Bxf3 {[%clk
0:00:50.6]} 21. Bxg6 {[%clk 0:00:37.5]} 21... hxg6 {[%clk 0:00:49.5]} 22. Raf1
{[%clk 0:00:37.2]} 22... Nxg3 {[%clk 0:00:49.2]} 23. Rxf3 {[%clk 0:00:33.3]}
23... Nxf1 {[%clk 0:00:49.1]} 0-1